bitfinex-derivatives/quotes_ETHF0:USTF0_20241004
["timestamp","ask_amount","ask_price","bid_price","bid_amount"]
[1728058664194,0.41218,2426.5,2426.0,0.41225]
[1728058664591,3.2078,2426.6,2425.9,3.2078]
[1728058665095,0.4122,2426.4,2425.9,3.2078]
[1728058665296,1.03035,2426.8,2425.9,3.2078]
[1728058665598,3.2078,2426.7,2425.9,3.2078]
[1728058665896,0.41222,2426.3,2425.9,3.62007]
[1728058666087,0.41225,2426.1,2425.9,3.2078]
[1728058666284,3.2078,2426.7,2425.6,3.2078]
[1728058666490,0.41218,2426.5,2426.0,0.41224]
[1728058666687,0.41216,2426.6,2426.2,0.41222]
[1728058666899,3.2078,2426.7,2425.9,3.2078]
[1728058666900,0.4122,2426.4,2426.0,0.41225]
[1728058667094,3.2078,2426.7,2425.9,3.2078]
[1728058667395,0.41219,2426.4,2426.0,0.41225]
[1728058667794,0.41221,2426.3,2425.9,3.2078]
[1728058667992,3.2078,2426.7,2425.9,3.2078]
[1728058668189,0.8013,2427.2,2426.2,3.2078]
[1728058668190,3.2078,2427.1,2426.2,3.2078]
[1728058668589,3.2078,2427.1,2426.4,0.41218]
[1728058668590,0.41213,2426.8,2426.4,0.41218]
[1728058668790,3.2078,2427.1,2426.2,3.2078]
[1728058669194,2.35216608,2427.1,2426.2,3.2078]
[1728058669405,0.41209,2427.0,2426.5,0.41217]
[1728058669696,2.35216608,2427.1,2426.5,3.61997]
[1728058669896,2.35216608,2427.1,2426.5,3.2078]
[1728058670201,1.03027,2426.9,2426.3,0.4122]
[1728058670495,0.41217,2426.6,2426.2,3.62002]
[1728058670689,2.35216608,2427.1,2426.2,3.2078]
[1728058670891,0.41219,2426.5,2426.2,3.2078]
[1728058671292,0.41219,2426.5,2426.1,0.41223]
[1728058671903,0.41215,2426.7,2426.3,3.62]
[1728058672206,1.83145,2427.2,2425.8,1.0307]
[1728058672207,0.41212,2426.9,2426.6,3.2078]
[1728058672502,0.41212,2426.9,2426.0,1.03062]
[1728058672503,1.03023,2427.0,2426.4,0.41218]
[1728058672704,1.03027,2426.9,2426.0,3.6143]
[1728058673003,0.41212,2426.9,2426.5,0.41216]
[1728058673201,0.41214,2426.7,2426.3,3.62]
[1728058673403,0.41214,2426.7,2426.4,0.41219]
[1728058673700,1.03026,2427.0,2426.3,3.2078]
[1728058673701,0.41216,2426.6,2426.3,3.62]
[1728058674201,0.41215,2426.7,2426.3,3.62]
[1728058674602,0.41215,2426.7,2426.3,3.2078]
[1728058675105,0.41215,2426.7,2426.3,3.62]
[1728058675300,0.41215,2426.7,2426.3,3.61999]
[1728058675510,0.41215,2426.7,2426.4,0.41219]
[1728058675692,1.03023,2427.0,2426.3,3.2078]
[1728058675897,0.41213,2426.8,2426.6,3.2078]
[1728058676096,0.41212,2426.9,2426.6,3.2078]
[1728058676296,0.41213,2426.8,2426.6,3.2078]
[1728058676898,1.03025,2427.0,2426.6,3.2078]
[1728058677104,1.03025,2427.0,2426.0,0.4065]
[1728058677105,0.41212,2426.8,2426.3,0.4122]
[1728058677298,1.03027,2426.9,2426.3,0.4122]
[1728058677299,0.41215,2426.7,2426.3,0.4122]
[1728058677705,0.41215,2426.7,2426.4,3.61999]
[1728058678006,4.23786,2427.5,2426.6,3.96]
[1728058678202,3.2078,2427.5,2426.7,3.2078]
[1728058678508,3.2078,2427.5,2427.1,0.41206]
[1728058678509,3.61981,2427.5,2427.1,0.41206]
[1728058679104,3.2078,2427.5,2426.7,4.23814]
[1728058679411,0.41203,2427.4,2427.1,0.41206]
[1728058679797,0.41203,2427.4,2426.7,4.23814]
[1728058680002,3.2078,2427.5,2426.7,3.2078]
[1728058680305,4.23783,2427.5,2426.7,3.2078]
[1728058680513,0.4121,2427.0,2426.7,3.2078]
[1728058680812,0.41212,2426.8,2426.7,3.2078]
[1728058681001,3.2078,2426.9,2426.0,3.6143]
[1728058681196,0.41219,2426.4,2426.1,0.41223]
[1728058681400,1.03041,2426.6,2426.0,4.02654]
[1728058681596,3.2078,2426.9,2426.0,3.6143]
[1728058681800,0.41222,2426.3,2426.0,3.62006]
[1728058682006,0.41223,2426.2,2426.0,3.2078]
[1728058682603,3.2078,2426.6,2426.0,3.2078]
[1728058682804,0.41219,2426.5,2426.1,0.41224]
[1728058683023,0.41219,2426.5,2426.0,3.2078]
[1728058683024,3.61996,2426.6,2426.2,0.41222]
[1728058683205,3.2078,2426.6,2426.0,3.2078]
[1728058683407,3.2078,2426.6,2426.5,0.41217]
[1728058683604,0.41212,2426.9,2426.5,0.41217]
[1728058683807,1.03023,2427.0,2426.4,0.41218]
[1728058684011,0.41213,2426.8,2426.5,0.41217]
[1728058684208,0.41213,2426.8,2426.3,3.2078]
[1728058684404,0.4106,2427.1,2426.3,3.2078]
[1728058684605,3.2078,2427.3,2426.6,3.2078]
[1728058684904,4.45,2428.2,2427.0,4.23803]
[1728058684905,0.7892,2428.0,2427.0,4.23803]
[1728058685105,0.41201,2427.5,2427.1,0.41207]
[1728058685403,5.02682,2428.0,2427.0,3.2078]
[1728058685404,1.02992,2427.8,2427.0,3.2078]
[1728058685614,0.41204,2427.3,2427.0,3.2078]
[1728058685810,1.41792,2427.8,2427.0,3.2078]
[1728058685811,0.41201,2427.5,2427.0,3.2078]
[1728058686004,0.41201,2427.5,2427.1,0.41206]
[1728058686410,1.02993,2427.7,2427.2,0.41205]
[1728058686411,0.412,2427.6,2427.2,0.41205]
[1728058687010,0.41201,2427.5,2427.1,0.41206]
[1728058687316,0.412,2427.6,2427.1,0.41206]
[1728058687515,0.412,2427.6,2427.2,0.41205]
[1728058687810,1.4179,2427.8,2427.1,0.41206]
[1728058687811,0.41201,2427.5,2427.1,0.41206]
[1728058688010,1.4179,2427.8,2427.1,0.41206]
[1728058688316,0.412,2427.6,2427.1,0.41206]
[1728058688506,1.4179,2427.8,2427.0,3.2078]
[1728058688704,3.2078,2428.0,2427.4,0.41201]
[1728058688916,0.41191,2428.1,2427.7,0.41197]
[1728058689212,0.41187,2428.3,2427.9,0.41193]
[1728058689412,2.27173,2428.5,2427.6,4.23776]
[1728058689413,0.42,2428.5,2427.6,3.2078]
[1728058689710,3.2078,2428.6,2427.5,7.067]
[1728058689711,3.2078,2428.6,2428.2,3.2078]
[1728058690209,3.2078,2428.6,2428.3,0.41186]
[1728058690399,0.4118,2428.7,2428.3,0.41186]
[1728058690606,0.4118,2428.7,2428.2,3.61968]
[1728058691010,1.0294,2429.0,2428.5,0.41182]
[1728058691011,0.41176,2429.0,2428.5,0.41182]
[1728058691210,4.4133,2429.1,2428.5,0.41183]
[1728058691508,0.41176,2429.0,2428.5,0.41182]
[1728058691917,0.4118,2428.7,2428.2,3.61967]
[1728058692115,2.64718029,2428.8,2428.3,0.41186]
[1728058692313,2.23538029,2428.8,2428.7,0.4118]
[1728058692518,2.23538029,2428.8,2428.7,10.5294]
[1728058692814,2.23538029,2428.8,2428.5,3.2078]
[1728058693012,2.23538029,2428.8,2428.6,0.41181]
[1728058693213,2.23538029,2428.8,2428.5,3.2078]
[1728058694012,2.23538029,2428.8,2428.6,4.1176]
[1728058694212,2.23538029,2428.8,2428.6,0.41181]
[1728058694409,0.41181,2428.7,2428.5,3.2078]
[1728058694810,2.23538029,2428.8,2428.6,4.1176]
[1728058695012,0.41181,2428.7,2428.5,3.2078]
[1728058695711,2.23538029,2428.8,2428.5,2.96301008]
[1728058695911,0.4118,2428.7,2428.5,2.96301008]
[1728058696112,2.64717029,2428.8,2428.5,3.37483008]
[1728058696311,2.23538029,2428.8,2428.5,2.96301008]
[1728058696525,2.23538029,2428.8,2428.6,0.41181]
[1728058696724,2.64717029,2428.8,2428.6,4.1176]
[1728058697017,2.23538029,2428.8,2428.7,4.5294]
[1728058697227,3.2078,2429.5,2428.6,6.0]
[1728058697228,3.2078,2429.5,2428.6,10.45]
[1728058697416,0.2,2430.0,2429.6,0.41164]
[1728058697417,0.61158,2430.0,2429.6,0.41164]
[1728058697615,1.09688029,2429.8,2429.6,3.2078]
[1728058698023,1.09688029,2429.7,2429.6,3.2078]
[1728058698217,3.2078,2431.2,2429.7,4.116]
[1728058698419,1.09688029,2430.2,2429.6,8.07405977]
[1728058698623,1.09688029,2430.1,2429.6,7.86705977]
[1728058698813,5.33333029,2430.8,2429.9,3.2078]
[1728058699016,3.2078,2431.8,2430.7,4.45]
[1728058699229,1.09688029,2431.6,2431.3,0.41134]
[1728058699524,1.41172,2432.3,2431.5,0.41132]
[1728058699525,3.61902,2432.2,2431.5,0.41132]
[1728058699823,1.09688029,2431.9,2431.3,3.2078]
[1728058700022,1.09688029,2431.5,2431.3,3.2078]
[1728058700225,0.41128,2431.8,2431.3,3.2078]
[1728058700416,0.41128,2431.8,2431.1,0.41139]
[1728058700417,1.09688029,2431.4,2431.1,0.41139]
[1728058700717,3.2078,2431.8,2431.0,3.2078]
[1728058700718,1.09688029,2431.3,2431.0,3.2078]
[1728058700920,3.2078,2431.8,2431.0,3.2078]
[1728058701120,3.2078,2431.8,2430.6,3.2078]
[1728058701121,1.09688029,2431.1,2430.6,3.2078]
[1728058701324,1.09688029,2431.1,2430.2,3.2078]
[1728058701325,1.09688029,2430.5,2430.2,3.2078]
[1728058701531,4.45,2431.6,2430.2,3.2078]
[1728058701532,3.2078,2431.6,2430.2,3.2078]
[1728058701821,1.09688029,2430.4,2430.0,0.41157]
[1728058702018,0.41134,2431.4,2430.8,0.41143]
[1728058702221,1.09688029,2431.0,2430.6,3.2078]
[1728058702523,0.3871,2431.8,2430.0,3.2078]
[1728058702524,1.09688029,2430.7,2430.0,3.2078]
[1728058702723,3.2078,2431.3,2430.3,3.2078]
[1728058702724,1.09688029,2430.5,2430.3,3.2078]
[1728058703024,1.09688029,2430.7,2430.3,3.2078]
[1728058703216,1.09688029,2430.4,2429.9,8.43894358]
[1728058703419,1.50846029,2430.0,2429.9,3.2078]
[1728058703619,1.09688029,2430.0,2429.9,3.2078]
[1728058703925,0.41155,2430.2,2429.9,13.323]
[1728058704126,1.0287,2430.6,2429.9,13.323]
[1728058704127,0.41154,2430.3,2430.0,4.1152]
[1728058704421,1.09688029,2430.4,2429.9,3.2078]
[1728058704614,3.2078,2430.7,2429.9,3.2078]
[1728058704818,1.09688029,2430.0,2429.9,3.2078]
[1728058705018,0.41164,2429.7,2429.3,0.41169]
[1728058705215,3.2078,2430.1,2429.1,3.2078]
[1728058705216,1.09688029,2429.5,2429.4,0.41167]
[1728058705419,1.09688029,2429.5,2429.4,3.61947]
[1728058705620,1.09688029,2429.5,2429.2,0.41171]
[1728058705935,1.09688029,2429.5,2429.4,0.41168]
[1728058706423,3.2078,2430.1,2429.8,0.41161]
[1728058706628,1.09688029,2430.1,2429.8,3.2078]
[1728058706824,3.2078,2430.4,2429.8,3.2078]
[1728058707025,1.09688029,2429.9,2429.3,3.2078]
[1728058707220,0.41161,2429.9,2429.5,0.41166]
[1728058707421,1.09688029,2429.6,2429.3,3.2078]
[1728058707617,1.09688029,2429.6,2429.5,0.41166]
[1728058708026,1.09688029,2429.6,2429.5,4.116]
[1728058708229,1.09688029,2429.6,2429.3,3.2078]
[1728058708424,0.3914,2430.3,2429.3,7.3238]
[1728058708620,0.3914,2430.3,2429.6,3.2078]
[1728058708820,0.3914,2430.3,2429.5,0.41166]
[1728058708821,1.09688029,2429.6,2429.5,0.41166]
[1728058709226,1.09688029,2429.6,2429.3,7.6578]
[1728058709525,1.09688029,2429.6,2429.4,0.41167]
[1728058710029,1.09688029,2429.5,2429.0,7.6578]
[1728058710232,1.09688029,2429.3,2429.0,3.61955]
[1728058710421,3.2078,2430.1,2429.0,3.2078]
[1728058710422,1.09688029,2429.1,2429.0,3.2078]
[1728058711132,0.41166,2429.6,2429.0,7.3246]
[1728058711322,1.09688029,2429.2,2429.1,0.41173]
[1728058711527,4.62184,2429.8,2429.0,3.2078]
[1728058711726,1.09688029,2429.1,2429.0,3.2078]
[1728058712029,0.41176,2429.0,2428.6,0.41181]
[1728058712221,1.50865029,2428.9,2428.6,0.41181]
[1728058712429,1.02929,2429.3,2428.6,0.41181]
[1728058712430,1.09688029,2428.8,2428.6,0.41181]
[1728058712724,1.09688029,2428.8,2428.5,3.2078]
[1728058713041,1.45109,2429.3,2428.5,3.2078]
[1728058713042,1.09688029,2428.7,2428.5,3.2078]
[1728058713530,1.09688029,2428.7,2428.6,0.41182]
[1728058714133,1.09688029,2428.7,2428.5,3.61963]
[1728058714424,1.09688029,2428.6,2428.5,3.2078]
[1728058714623,1.09688029,2428.6,2428.5,3.61963]
[1728058714819,0.41175,2429.1,2428.5,13.3254]
[1728058715025,1.09688029,2429.0,2428.9,0.41177]
[1728058715226,1.09688029,2429.4,2428.9,1.02942]
[1728058715426,1.09688029,2429.4,2429.3,3.6195]
[1728058715626,1.09688029,2429.4,2429.3,3.2078]
[1728058715837,1.09688029,2429.4,2429.1,4.45]
[1728058716139,1.09688029,2429.4,2429.0,3.2078]
[1728058716140,1.09688029,2429.2,2428.9,0.41175]
[1728058716328,0.41166,2429.6,2429.0,3.2078]
[1728058716532,4.6438,2429.9,2429.2,0.41171]
[1728058716533,1.09688029,2429.3,2429.2,0.41171]
[1728058716832,1.09688029,2429.4,2429.3,0.41169]
[1728058717037,0.41167,2429.5,2429.3,3.2078]
[1728058717233,1.09688029,2429.4,2429.3,3.6195]
[1728058717535,1.09688029,2429.4,2429.2,0.4117]
[1728058717737,1.09688029,2429.2,2429.1,4.45]
[1728058717932,1.09688029,2429.2,2429.1,4.86173]
[1728058718629,0.41162,2429.8,2429.1,14.5668]
[1728058718833,3.6148,2429.9,2429.4,3.2078]
[1728058718834,0.41165,2429.6,2429.4,3.2078]
[1728058719037,1.09688029,2429.4,2429.3,0.4117]
[1728058719231,1.09688029,2429.4,2429.2,3.2078]
[1728058719436,1.09688029,2429.3,2429.2,3.2078]
[1728058719631,0.41163,2429.8,2429.4,0.41167]
[1728058719834,1.09688029,2429.6,2429.4,0.41167]
[1728058720139,1.09688029,2429.6,2429.2,3.2078]
[1728058720335,1.50858029,2429.3,2429.2,3.2078]
[1728058720546,1.09688029,2429.3,2428.8,3.2078]
[1728058720734,1.09688029,2429.1,2428.9,0.41176]
[1728058721132,1.09688029,2429.1,2428.8,3.2078]
[1728058721433,1.09688029,2429.0,2428.8,3.2078]
[1728058721833,1.09688029,2429.0,2428.8,3.61958]
[1728058722030,1.09688029,2429.0,2428.7,4.45]
[1728058722031,1.09688029,2428.9,2428.5,3.2078]
[1728058722234,1.09688029,2428.7,2428.5,3.2078]
[1728058722638,1.50870029,2428.6,2428.5,3.2078]
[1728058724031,1.09688029,2428.6,2428.5,3.2078]
[1728058724227,1.50870029,2428.6,2428.5,3.2078]
[1728058724431,1.09688029,2428.6,2428.5,3.2078]
[1728058724640,1.50870029,2428.6,2428.5,3.2078]
[1728058725230,1.09688029,2428.6,2428.4,3.2078]
[1728058725440,1.09688029,2428.6,2427.9,0.41192]
[1728058725441,0.4119,2428.2,2427.9,0.41193]
[1728058725739,0.41194,2427.9,2427.8,3.2078]
[1728058725940,0.41194,2427.9,2427.3,5.48009]
[1728058725941,1.09688029,2427.9,2427.5,3.61979]
[1728058726236,1.09688029,2427.8,2427.7,4.45]
[1728058726439,1.09688029,2427.8,2427.7,4.86197]
[1728058728335,1.09688029,2427.8,2427.5,4.23779]
[1728058728336,0.41199,2427.6,2427.5,3.2078]
[1728058728529,1.50887029,2427.6,2427.4,4.45]
[1728058728744,1.09688029,2427.5,2427.4,0.41202]
[1728058729539,0.41196,2427.8,2427.6,0.41198]
[1728058729737,1.09688029,2427.7,2427.6,0.41198]
[1728058729938,1.09688029,2427.7,2427.4,4.45]
[1728058730137,1.09688029,2427.7,2427.6,0.41199]
[1728058730738,1.09688029,2427.7,2427.5,3.2078]
[1728058730739,1.50885029,2427.7,2427.5,3.2078]
[1728058730937,0.41197,2427.7,2427.5,3.2078]
[1728058731137,1.09688029,2427.6,2427.5,3.2078]
[1728058731637,1.09688029,2427.6,2427.5,3.6198]
[1728058731834,0.41188,2428.3,2428.0,0.41191]
[1728058732139,0.8044,2429.3,2428.8,0.41177]
[1728058732439,0.8044,2429.3,2428.7,3.2078]
[1728058732641,1.09688029,2428.5,2428.4,0.41184]
[1728058733040,0.41174,2429.1,2428.7,0.41179]
[1728058733241,0.41174,2429.1,2428.7,3.61959]
[1728058733242,1.09688029,2428.8,2428.7,3.61959]
[1728058734046,1.09688029,2428.8,2428.7,3.2078]
[1728058734340,1.09688029,2428.8,2428.7,3.6196]
[1728058736135,0.41182,2428.6,2428.4,3.2078]
[1728058736439,1.50873029,2428.5,2428.1,0.41189]
[1728058736739,1.02952,2428.7,2428.3,3.2078]
[1728058736937,1.50873029,2428.4,2428.1,0.41189]
[1728058737137,0.41188,2428.3,2428.1,3.2078]
[1728058737342,1.09688029,2428.2,2428.1,3.2078]
[1728058737539,0.7728,2428.6,2428.1,3.2078]
[1728058737741,0.7728,2428.6,2428.2,0.41187]
[1728058737742,1.09688029,2428.3,2428.2,0.41187]
[1728058738443,0.41178,2428.9,2428.6,0.41181]
[1728058738751,1.09688029,2428.7,2428.6,0.41181]
[1728058739344,0.41173,2429.2,2428.9,0.41176]
[1728058739548,1.09688029,2428.8,2428.7,0.4118]
[1728058740439,3.6017,2429.5,2428.7,4.1176]
[1728058740644,1.09688029,2428.9,2428.8,0.41178]
[1728058741037,1.09688029,2428.9,2428.5,4.45]
[1728058741237,1.09688029,2428.8,2428.7,0.4118]
[1728058741842,1.02927,2429.3,2428.7,0.4118]
[1728058742042,1.02927,2429.3,2428.7,0.41179]
[1728058742043,1.09688029,2428.9,2428.7,0.41179]
[1728058742349,1.09688029,2428.8,2428.6,3.61961]
[1728058742543,1.09688029,2428.8,2428.7,0.4118]
[1728058743437,1.09688029,2428.8,2428.6,3.61961]
[1728058743642,1.09688029,2428.7,2428.6,3.61961]
[1728058743843,1.09688029,2428.7,2428.6,3.2078]
[1728058744144,1.09688029,2428.7,2428.2,7.6578]
[1728058744449,0.41185,2428.4,2428.2,3.61968]
[1728058744645,1.09688029,2428.3,2428.2,3.2078]
[1728058744951,1.50875029,2428.3,2428.2,3.2078]
[1728058745150,1.09688029,2428.3,2428.2,3.2078]
[1728058745337,1.09688029,2428.3,2428.2,3.61968]
[1728058745542,0.41176,2429.0,2428.7,0.41179]
[1728058745744,0.41172,2429.2,2428.7,3.2078]
[1728058746042,0.41172,2429.2,2428.7,3.6196]
[1728058746043,1.09688029,2428.8,2428.7,3.6196]
[1728058746648,1.09688029,2428.8,2428.7,0.4118]
[1728058746937,1.09688029,2428.8,2428.7,3.6196]
[1728058747852,3.2078,2429.3,2428.7,7.3254]
[1728058748049,0.8346,2429.4,2428.7,7.3254]
[1728058748050,0.8346,2429.4,2429.2,0.41171]
[1728058748345,1.09688029,2429.1,2429.0,3.61955]
[1728058749448,1.09688029,2429.1,2429.0,0.41175]
[1728058749841,1.09688029,2429.1,2429.0,3.61955]
[1728058750641,3.2078,2429.7,2429.0,13.3246]
[1728058750949,0.4058,2429.9,2429.4,7.6578]
[1728058751142,0.4058,2429.9,2428.7,4.45]
[1728058751143,1.09688029,2429.9,2429.8,3.61941]
[1728058751455,20.41484,2430.1,2430.0,0.41158]
[1728058751649,20.41484,2430.1,2430.0,4.52678]
[1728058752352,21.51172029,2430.1,2430.0,0.41158]
[1728058753350,21.51172029,2430.1,2430.0,4.52678]
[1728058753554,20.41484,2430.1,2430.0,0.41158]
[1728058753750,20.41484,2430.1,2430.0,4.52678]
[1728058754544,20.41484,2430.1,2430.0,14.97678]
[1728058755860,21.51172029,2430.1,2430.0,0.41158]
[1728058756547,20.41484,2430.1,2430.0,8.97678]
[1728058756959,3.2078,2431.4,2430.0,14.5652]
[1728058757147,0.4113,2431.7,2431.4,0.41134]
[1728058757357,1.09688029,2431.5,2431.4,0.41134]
[1728058757655,1.09688029,2431.5,2431.3,4.86135]
[1728058757846,1.09688029,2431.4,2431.2,0.41137]
[1728058758060,1.09688029,2431.2,2431.1,3.2078]
[1728058758250,1.50826029,2431.2,2430.7,3.2078]
[1728058758452,1.02839,2431.4,2430.7,3.2078]
[1728058758759,0.4163,2432.1,2430.2,1.84017]
[1728058758760,1.09688029,2430.8,2430.3,3.2078]
[1728058759058,3.17005319,2432.1,2430.6,7.6578]
[1728058759352,3.76868228,2432.3,2431.6,4.45]
[1728058759353,1.09688029,2431.9,2431.6,4.45]
[1728058759552,0.412,2432.3,2431.6,4.45]
[1728058759757,1.09688029,2431.7,2431.6,4.86131]
[1728058759947,0.82319,2432.3,2431.8,0.41127]
[1728058759948,1.09688029,2431.9,2431.8,0.41127]
[1728058760355,0.412,2432.3,2431.8,10.112]
[1728058760553,0.412,2432.3,2431.9,3.2078]
[1728058760554,0.41122,2432.2,2431.9,3.2078]
[1728058760859,0.412,2432.3,2431.9,3.61905]
[1728058761153,1.09688029,2432.1,2431.9,3.2078]
[1728058761356,1.09688029,2432.0,2431.9,3.2078]
[1728058761555,1.09688029,2432.0,2431.9,3.61906]
[1728058762053,1.09688029,2432.0,2431.9,3.2078]
[1728058762054,1.50812029,2432.0,2431.9,3.2078]
[1728058762649,1.09688029,2432.0,2431.6,7.6578]
[1728058762848,1.44001,2432.3,2431.0,1.0285]
[1728058762849,1.50817029,2431.7,2431.4,0.41134]
[1728058763057,1.09688029,2431.5,2431.4,0.41134]
[1728058763446,0.41125,2432.0,2431.4,10.1128]
[1728058763650,1.50817029,2431.7,2431.6,7.6578]
[1728058764066,1.09688029,2431.7,2431.2,7.6578]
[1728058764358,0.412,2432.3,2431.4,0.41134]
[1728058764359,0.41132,2431.6,2431.4,0.41134]
[1728058764657,0.41131,2431.6,2431.4,0.41134]
[1728058764864,1.09688029,2431.5,2431.4,0.41134]
[1728058765357,17.40303,2432.5,2431.8,1.02816]
[1728058765575,18.49991029,2432.5,2432.4,0.41117]
[1728058765762,18.49991029,2432.5,2432.3,0.41118]
[1728058766360,17.20003,2432.5,2432.4,9.67237]
[1728058766657,8.70894577,2434.6,2432.4,9.67237]
[1728058766658,3.2078,2434.3,2432.4,21.55862023]
[1728058766864,0.8177,2434.7,2433.9,0.41092]
[1728058766865,1.09688029,2434.0,2433.9,0.41092]
[1728058767155,4.0255,2434.7,2433.8,7.6578]
[1728058767156,1.09688029,2434.7,2433.8,7.6578]
[1728058767355,0.832,2436.2,2433.8,7.6578]
[1728058767356,0.207,2436.4,2434.6,7.6578]
[1728058767555,0.4106,2435.8,2435.1,7.6578]
[1728058767760,3.2078,2436.1,2435.5,4.45]
[1728058767957,0.41059,2435.9,2435.5,4.45]
[1728058768149,3.2078,2436.1,2435.5,4.45]
[1728058768358,3.2078,2436.8,2436.0,3.2078]
[1728058768561,1.02586,2437.4,2435.9,3.2078]
[1728058768562,3.2078,2436.5,2435.9,3.2078]
[1728058768757,2.953,2437.2,2435.5,3.2078]
[1728058768758,3.2078,2436.2,2435.5,3.2078]
[1728058768952,3.2078,2436.2,2435.2,4.45]
[1728058768953,0.41056,2436.1,2435.2,8.0685]
[1728058769162,3.2078,2436.2,2435.5,3.2078]
[1728058769354,0.4132,2436.6,2435.5,3.2078]
[1728058769355,3.2078,2436.5,2435.5,3.2078]
[1728058769659,3.2078,2436.2,2435.5,7.6578]
[1728058769864,3.2078,2436.2,2435.2,7.6578]
[1728058770160,0.41072,2435.2,2434.6,0.207]
[1728058770461,3.61852,2435.2,2434.5,3.2078]
[1728058770670,0.41078,2434.8,2434.5,3.2078]
[1728058770957,3.2078,2435.4,2434.5,3.61862]
[1728058771260,3.2078,2435.4,2434.5,3.2078]
[1728058771464,3.2078,2435.1,2434.5,3.2078]
[1728058771657,3.2078,2434.8,2434.1,7.6578]
[1728058771853,0.4108,2434.7,2434.1,7.6578]
[1728058772064,0.41081,2434.6,2434.1,7.6578]
[1728058772357,3.2078,2434.8,2434.1,3.2078]
[1728058772358,0.41082,2434.5,2434.1,3.2078]
[1728058772558,0.41082,2434.5,2433.7,4.45]
[1728058772559,3.2078,2434.5,2433.9,0.41092]
[1728058772765,3.2078,2434.5,2433.8,3.2078]
[1728058773068,3.61863,2434.5,2434.1,3.2078]
[1728058773263,3.61863,2434.5,2433.7,4.45]
[1728058773264,3.2078,2434.5,2433.7,7.6578]
[1728058773561,3.2078,2434.5,2433.7,3.2078]
[1728058773753,0.41091,2434.0,2433.7,3.2078]
[1728058773950,3.2078,2434.2,2433.7,3.2078]
[1728058775066,0.41094,2433.8,2433.7,3.2078]
[1728058775369,0.41092,2434.0,2433.7,3.2078]
[1728058775554,3.2078,2434.2,2433.7,3.2078]
[1728058775555,0.41093,2433.9,2433.7,3.2078]
[1728058775753,0.41094,2433.8,2433.2,3.2078]
[1728058776061,0.41102,2433.4,2433.2,3.2078]
[1728058776255,0.41102,2433.3,2433.2,3.2078]
[1728058776957,0.41102,2433.3,2433.1,17.49003]
[1728058776958,4.1096,2433.3,2433.1,17.49003]
[1728058777156,0.41103,2433.3,2433.1,17.49003]
[1728058777764,0.41101,2433.4,2433.1,17.49003]
[1728058777961,3.2078,2433.6,2433.1,17.49003]
[1728058778163,0.41104,2433.2,2433.1,17.49003]
[1728058778570,0.41103,2433.3,2433.1,17.49003]
[1728058778763,0.41101,2433.4,2433.1,17.49003]
[1728058778960,3.2078,2433.6,2433.1,17.49003]
[1728058778961,0.41099,2433.5,2433.1,17.49003]
[1728058779164,3.2078,2433.6,2433.1,17.49003]
[1728058779361,0.41104,2433.2,2433.1,17.49003]
[1728058779865,0.41085,2434.4,2433.2,1.02758]
[1728058780057,1.02695,2434.8,2433.2,1.02758]
[1728058780058,0.41082,2434.5,2434.0,0.4109]
[1728058780258,3.2078,2434.6,2433.9,4.45]
[1728058780462,0.41082,2434.5,2433.9,4.86091]
[1728058780670,0.41082,2434.5,2434.0,0.4109]
[1728058780964,0.41066,2435.5,2434.8,0.41075]
[1728058781165,3.2078,2435.7,2434.9,3.2078]
[1728058781368,3.2078,2435.7,2434.6,4.45]
[1728058781369,0.41068,2435.3,2434.7,0.41078]
[1728058781672,0.41068,2435.3,2434.3,4.45]
[1728058781673,0.41078,2434.8,2434.3,4.45]
[1728058781859,40.8,2435.7,2434.3,4.45]
[1728058781860,3.2078,2435.1,2434.3,4.45]
[1728058782060,0.41084,2434.4,2434.0,3.2078]
[1728058782262,0.41079,2434.7,2434.0,3.2078]
[1728058782466,0.41085,2434.3,2434.0,3.2078]
[1728058782661,0.41088,2434.2,2433.9,4.45]
[1728058782866,1.0271,2434.4,2433.6,4.45]
[1728058783169,0.7959,2435.2,2433.4,3.2078]
[1728058783170,0.41095,2433.8,2433.4,3.2078]
[1728058783466,0.41096,2433.7,2433.4,3.2078]
[1728058783664,1.02731,2433.9,2433.4,3.2078]
[1728058783863,1.02731,2433.9,2433.2,4.45]
[1728058784364,3.2078,2434.0,2433.2,4.45]
[1728058784565,3.2078,2433.7,2433.1,17.49003]
[1728058784761,1.02743,2433.6,2433.1,17.49003]
[1728058785165,0.41104,2433.2,2433.1,17.49003]
[1728058786675,4.52064,2433.2,2433.1,17.49003]
[1728058786863,10.52064,2433.2,2433.1,17.49003]
[1728058787772,10.52064,2433.2,2433.1,16.59222]
[1728058787969,0.4112,2432.3,2432.0,0.207]
[1728058788178,0.4112,2432.3,2431.8,7.6578]
[1728058788179,0.41119,2432.3,2432.2,4.1096]
[1728058788583,0.41118,2432.4,2432.2,4.1096]
[1728058788782,3.2078,2432.7,2432.2,4.1096]
[1728058788985,0.41119,2432.3,2432.2,4.1096]
[1728058789389,0.41116,2432.5,2432.2,4.1096]
[1728058789575,3.2078,2432.7,2432.2,4.1096]
[1728058789576,0.41119,2432.3,2432.2,4.1096]
[1728058789797,3.2078,2432.7,2431.8,3.2078]
[1728058790086,3.2078,2432.7,2431.5,4.45]
[1728058790087,0.41124,2432.1,2432.0,4.1096]
[1728058790478,0.4113,2431.7,2431.5,4.45]
[1728058790678,0.41126,2431.9,2431.8,4.1096]
[1728058790885,3.2078,2432.2,2431.5,4.45]
[1728058791087,1.02798,2432.3,2431.8,4.1096]
[1728058791382,3.2078,2432.2,2431.7,4.1096]